[Event "*** Titled Tuesday Blitz"]
[Site "Chess.com"]
[Date "2020.04.07"]
[Round "2"]
[White "GadimbayliA"]
[Black "DamianoLew95"]
[Result "1-0"]
[WhiteElo "2928"]
[BlackElo "2591"]
[TimeControl "180+1"]
[EndTime "13:16:55 PDT"]
[Termination "GadimbayliA won by resignation"]

1. e4 {[%clk 0:03:00.9]} 1... c5 {[%clk 0:02:59]} 2. Nf3 {[%clk 0:03:01]} 2...
d6 {[%clk 0:02:59.6]} 3. d4 {[%clk 0:03:01]} 3... cxd4 {[%clk 0:03:00.5]} 4.
Nxd4 {[%clk 0:03:01.9]} 4... Nf6 {[%clk 0:03:01.2]} 5. Nc3 {[%clk 0:03:02.3]}
5... Bd7 {[%clk 0:03:01.2]} 6. g3 {[%clk 0:03:01.8]} 6... Nc6 {[%clk 0:03:00.9]}
7. Bg2 {[%clk 0:03:02.2]} 7... a6 {[%clk 0:03:00.9]} 8. O-O {[%clk 0:03:02.2]}
8... e6 {[%clk 0:03:01.4]} 9. h3 {[%clk 0:03:02]} 9... Be7 {[%clk 0:03:01.7]}
10. Be3 {[%clk 0:03:02.7]} 10... Qc7 {[%clk 0:02:53.7]} 11. Qe2 {[%clk
0:03:01.1]} 11... O-O {[%clk 0:02:52.9]} 12. Rad1 {[%clk 0:03:00.4]} 12... Rac8
{[%clk 0:02:49]} 13. Kh2 {[%clk 0:02:57.4]} 13... b5 {[%clk 0:02:48.9]} 14. a3
{[%clk 0:02:54.5]} 14... Na5 {[%clk 0:02:45.2]} 15. f4 {[%clk 0:02:47.9]} 15...
Nc4 {[%clk 0:02:45.1]} 16. Bc1 {[%clk 0:02:45.6]} 16... Nxa3 {[%clk 0:02:39.4]}
17. e5 {[%clk 0:02:40.1]} 17... dxe5 {[%clk 0:02:39.2]} 18. fxe5 {[%clk
0:02:39.7]} 18... Ne8 {[%clk 0:02:37.1]} 19. Nf5 {[%clk 0:02:17.8]} 19... Bb4
{[%clk 0:02:20.7]} 20. bxa3 {[%clk 0:02:00.8]} 20... Bxc3 {[%clk 0:02:18.8]} 21.
Ne7+ {[%clk 0:02:00.9]} 21... Kh8 {[%clk 0:02:17]} 22. Qh5 {[%clk 0:01:59.6]}
22... Bxe5 {[%clk 0:02:05.3]} 23. Ng6+ {[%clk 0:01:54.5]} 23... Kg8 {[%clk
0:02:01.5]} 24. Nxe5 {[%clk 0:01:54.5]} 24... Nf6 {[%clk 0:01:58.4]} 25. Rxf6
{[%clk 0:01:48.9]} 25... gxf6 {[%clk 0:01:55.3]} 26. Be4 {[%clk 0:01:41.8]}
26... f5 {[%clk 0:01:49.7]} 27. Qg5+ {[%clk 0:01:40.6]} 27... Kh8 {[%clk
0:01:46.4]} 28. Qf6+ {[%clk 0:01:41.2]} 28... Kg8 {[%clk 0:01:46.8]} 29. Bh6
{[%clk 0:01:41.7]} 29... Qxe5 {[%clk 0:01:47.7]} 30. Qxe5 {[%clk 0:01:40.3]}
30... f6 {[%clk 0:01:48.4]} 31. Qd6 {[%clk 0:01:27.2]} 31... Rf7 {[%clk
0:01:48.7]} 32. Bd3 {[%clk 0:01:26.5]} 32... e5 {[%clk 0:01:46.6]} 33. Qd5
{[%clk 0:01:20.9]} 33... e4 {[%clk 0:01:43.9]} 34. Be2 {[%clk 0:01:19.6]} 34...
Bc6 {[%clk 0:01:29.6]} 35. Qe6 {[%clk 0:01:15.3]} 1-0

[Event "*** Titled Tuesday Blitz"]
[Site "Chess.com"]
[Date "2020.04.07"]
[Round "2"]
[White "MisaPap"]
[Black "pedroholly22"]
[Result "0-1"]
[WhiteElo "2660"]
[BlackElo "2331"]
[TimeControl "180+1"]
[EndTime "13:16:57 PDT"]
[Termination "pedroholly22 won by resignation"]

1. e4 {[%clk 0:03:00.9]} 1... c5 {[%clk 0:02:59.1]} 2. c3 {[%clk 0:03:00.2]}
2... d6 {[%clk 0:02:57.8]} 3. d4 {[%clk 0:02:59.9]} 3... Nf6 {[%clk 0:02:54.9]}
4. Bd3 {[%clk 0:02:59.9]} 4... g6 {[%clk 0:02:45.3]} 5. dxc5 {[%clk 0:02:57.4]}
5... dxc5 {[%clk 0:02:43.8]} 6. e5 {[%clk 0:02:58]} 6... Nfd7 {[%clk 0:02:42.2]}
7. f4 {[%clk 0:02:56.4]} 7... Bg7 {[%clk 0:02:41]} 8. Nf3 {[%clk 0:02:56.2]}
8... O-O {[%clk 0:02:38.8]} 9. O-O {[%clk 0:02:55.9]} 9... Nb6 {[%clk
0:02:35.7]} 10. Qe2 {[%clk 0:02:54.7]} 10... Nc6 {[%clk 0:02:26.1]} 11. Na3
{[%clk 0:02:50.6]} 11... a6 {[%clk 0:02:24.4]} 12. Be4 {[%clk 0:02:49.6]} 12...
Qc7 {[%clk 0:02:10.7]} 13. Be3 {[%clk 0:02:46.5]} 13... Bg4 {[%clk 0:01:53.8]}
14. h3 {[%clk 0:02:40.6]} 14... Bxf3 {[%clk 0:01:53.3]} 15. Qxf3 {[%clk
0:02:41.5]} 15... Rac8 {[%clk 0:01:49.6]} 16. Rad1 {[%clk 0:02:37.7]} 16... Na4
{[%clk 0:01:36.8]} 17. Rd2 {[%clk 0:02:18.6]} 17... b5 {[%clk 0:01:35.7]} 18.
Rfd1 {[%clk 0:02:08.9]} 18... Rfd8 {[%clk 0:01:29.6]} 19. Bxc6 {[%clk
0:02:01.4]} 19... Rxd2 {[%clk 0:01:28.7]} 20. Rxd2 {[%clk 0:02:01.7]} 20... Qxc6
{[%clk 0:01:28.8]} 21. Rd8+ {[%clk 0:02:00.4]} 21... Bf8 {[%clk 0:01:26.1]} 22.
Qxc6 {[%clk 0:02:00]} 22... Rxc6 {[%clk 0:01:25.8]} 23. f5 {[%clk 0:02:00.4]}
23... gxf5 {[%clk 0:01:16.6]} 24. c4 {[%clk 0:01:54.9]} 24... Nxb2 {[%clk
0:01:08.4]} 25. cxb5 {[%clk 0:01:53.8]} 25... axb5 {[%clk 0:01:08.3]} 26. Nxb5
{[%clk 0:01:54]} 26... Kg7 {[%clk 0:01:05]} 27. Nc3 {[%clk 0:01:47.1]} 27... Nc4
{[%clk 0:01:00.5]} 28. Bf4 {[%clk 0:01:44.4]} 28... e6 {[%clk 0:01:00.7]} 29.
Ne2 {[%clk 0:01:30.6]} 29... Be7 {[%clk 0:01:00]} 30. Ng3 {[%clk 0:01:29.1]}
30... Bxd8 {[%clk 0:00:58.8]} 0-1

[Event "*** Titled Tuesday Blitz"]
[Site "Chess.com"]
[Date "2020.04.07"]
[Round "2"]
[White "Olga_Girya"]
[Black "TheBigBoss04"]
[Result "1-0"]
[WhiteElo "2550"]
[BlackElo "2789"]
[TimeControl "180+1"]
[EndTime "13:16:59 PDT"]
[Termination "Olga_Girya won by resignation"]

1. d4 {[%clk 0:03:00.9]} 1... g6 {[%clk 0:03:00.1]} 2. e4 {[%clk 0:02:59.5]}
2... Bg7 {[%clk 0:03:00.3]} 3. Nf3 {[%clk 0:02:58.8]} 3... c6 {[%clk 0:03:00.7]}
4. Bd3 {[%clk 0:02:53.4]} 4... d5 {[%clk 0:03:00.9]} 5. e5 {[%clk 0:02:53.9]}
5... Bg4 {[%clk 0:03:00.7]} 6. Nbd2 {[%clk 0:02:54.1]} 6... c5 {[%clk
0:02:58.9]} 7. c3 {[%clk 0:02:53.9]} 7... Nc6 {[%clk 0:02:59]} 8. O-O {[%clk
0:02:54]} 8... e6 {[%clk 0:02:55.4]} 9. h3 {[%clk 0:02:52.3]} 9... Bxf3 {[%clk
0:02:54.9]} 10. Nxf3 {[%clk 0:02:52.4]} 10... c4 {[%clk 0:02:55]} 11. Bc2 {[%clk
0:02:50.9]} 11... Nge7 {[%clk 0:02:55.1]} 12. Nh2 {[%clk 0:02:33.6]} 12... h5
{[%clk 0:02:52.1]} 13. Bg5 {[%clk 0:02:31.1]} 13... Qd7 {[%clk 0:02:45.2]} 14.
b3 {[%clk 0:02:31]} 14... b5 {[%clk 0:02:39.9]} 15. a4 {[%clk 0:02:26.2]} 15...
cxb3 {[%clk 0:02:15]} 16. Bxb3 {[%clk 0:02:27.1]} 16... b4 {[%clk 0:02:14.8]}
17. cxb4 {[%clk 0:02:15.9]} 17... Nxb4 {[%clk 0:02:13.5]} 18. a5 {[%clk
0:02:11.3]} 18... Nec6 {[%clk 0:01:55.6]} 19. Qd2 {[%clk 0:02:00.3]} 19... Rc8
{[%clk 0:01:33.3]} 20. Ba4 {[%clk 0:01:57.1]} 20... O-O {[%clk 0:01:10.9]} 21.
Qxb4 {[%clk 0:01:53.7]} 21... Nxb4 {[%clk 0:01:08.2]} 22. Bxd7 {[%clk
0:01:53.4]} 22... Rc7 {[%clk 0:01:08.8]} 23. Be7 {[%clk 0:01:44.2]} 23... Rxd7
{[%clk 0:01:08.5]} 24. Bxb4 {[%clk 0:01:43.9]} 24... Rc8 {[%clk 0:01:08.1]} 25.
Rfc1 {[%clk 0:01:40.4]} 25... Rdc7 {[%clk 0:01:07.9]} 26. Rxc7 {[%clk
0:01:39.2]} 26... Rxc7 {[%clk 0:01:08.8]} 27. Nf3 {[%clk 0:01:32.3]} 27... Rc4
{[%clk 0:01:08.9]} 28. Bc5 {[%clk 0:01:31.1]} 28... a6 {[%clk 0:01:09.8]} 29.
Rb1 {[%clk 0:01:26.8]} 29... Bh6 {[%clk 0:01:10.5]} 30. Rb8+ {[%clk 0:01:24]}
30... Kh7 {[%clk 0:01:11.1]} 31. Ra8 {[%clk 0:01:18.8]} 31... g5 {[%clk
0:01:11.7]} 32. g4 {[%clk 0:01:17]} 32... Rc3 {[%clk 0:01:05.4]} 33. Kg2 {[%clk
0:01:16.4]} 33... hxg4 {[%clk 0:01:06]} 34. hxg4 {[%clk 0:01:16.5]} 34... Ra3
{[%clk 0:01:06.1]} 35. Rxa6 {[%clk 0:01:15.9]} 1-0

[Event "*** Titled Tuesday Blitz"]
[Site "Chess.com"]
[Date "2020.04.07"]
[Round "2"]
[White "HansCoolNiemann"]
[Black "RitvarsReimanis"]
[Result "1-0"]
[WhiteElo "2936"]
[BlackElo "2595"]
[TimeControl "180+1"]
[EndTime "13:17:01 PDT"]
[Termination "HansCoolNiemann won by checkmate"]

1. Nf3 {[%clk 0:03:00.9]} 1... Nf6 {[%clk 0:02:59.7]} 2. c4 {[%clk 0:02:58.8]}
2... e6 {[%clk 0:03:00.6]} 3. b3 {[%clk 0:02:58.6]} 3... d5 {[%clk 0:03:01.5]}
4. Bb2 {[%clk 0:02:59.3]} 4... Be7 {[%clk 0:03:02.1]} 5. Rg1 {[%clk 0:02:59.5]}
5... O-O {[%clk 0:03:02.7]} 6. g4 {[%clk 0:02:59.7]} 6... Ne4 {[%clk 0:03:03.2]}
7. Qc2 {[%clk 0:02:55.5]} 7... Bf6 {[%clk 0:03:02.1]} 8. d3 {[%clk 0:02:50.6]}
8... Bxb2 {[%clk 0:03:01.8]} 9. Qxb2 {[%clk 0:02:51.5]} 9... Qf6 {[%clk
0:03:02.3]} 10. Qxf6 {[%clk 0:02:49.6]} 10... Nxf6 {[%clk 0:03:03.2]} 11. g5
{[%clk 0:02:50.3]} 11... Nfd7 {[%clk 0:02:57.7]} 12. Nc3 {[%clk 0:02:50.4]}
12... c6 {[%clk 0:02:40.4]} 13. h4 {[%clk 0:02:48.6]} 13... b6 {[%clk
0:02:34.2]} 14. h5 {[%clk 0:02:35.7]} 14... Bb7 {[%clk 0:02:33.1]} 15. g6 {[%clk
0:02:36]} 15... hxg6 {[%clk 0:02:13.1]} 16. hxg6 {[%clk 0:02:36.9]} 16... fxg6
{[%clk 0:02:13.5]} 17. Rxg6 {[%clk 0:02:29.8]} 17... Rf6 {[%clk 0:02:13.4]} 18.
Rxf6 {[%clk 0:02:29.1]} 18... gxf6 {[%clk 0:02:11.9]} 19. Bh3 {[%clk 0:02:29.5]}
19... Kf7 {[%clk 0:02:08.4]} 20. Nd4 {[%clk 0:02:29.1]} 20... f5 {[%clk
0:01:59.2]} 21. Kd2 {[%clk 0:02:23.8]} 21... Na6 {[%clk 0:01:48.9]} 22. cxd5
{[%clk 0:02:16.8]} 22... cxd5 {[%clk 0:01:49.8]} 23. Ncb5 {[%clk 0:02:16.8]}
23... Kf6 {[%clk 0:01:34.7]} 24. f4 {[%clk 0:02:09.2]} 24... Nb4 {[%clk
0:01:05.8]} 25. Rc1 {[%clk 0:01:56.6]} 25... Nxa2 {[%clk 0:00:38.3]} 26. Rc7
{[%clk 0:01:54.9]} 26... Nc5 {[%clk 0:00:38.8]} 27. Nd6 {[%clk 0:01:55.4]} 27...
Ba6 {[%clk 0:00:34.6]} 28. Rf7+ {[%clk 0:01:50.1]} 28... Kg6 {[%clk 0:00:34.6]}
29. Nxe6 {[%clk 0:01:50.5]} 29... Nxe6 {[%clk 0:00:31.4]} 30. Bxf5+ {[%clk
0:01:45]} 30... Kh5 {[%clk 0:00:31.1]} 31. Rh7# {[%clk 0:01:45.9]} 1-0

[Event "*** Titled Tuesday Blitz"]
[Site "Chess.com"]
[Date "2020.04.07"]
[Round "2"]
[White "FrankieJay"]
[Black "DrMelekess"]
[Result "0-1"]
[WhiteElo "2410"]
[BlackElo "2713"]
[TimeControl "180+1"]
[EndTime "13:17:06 PDT"]
[Termination "DrMelekess won by resignation"]

1. e4 {[%clk 0:03:00.9]} 1... Nc6 {[%clk 0:02:58.3]} 2. Nf3 {[%clk 0:03:00.2]}
2... d5 {[%clk 0:02:58.3]} 3. exd5 {[%clk 0:02:59.8]} 3... Qxd5 {[%clk
0:02:59.2]} 4. Nc3 {[%clk 0:03:00.5]} 4... Qa5 {[%clk 0:02:59.2]} 5. Bb5 {[%clk
0:02:58.9]} 5... Bd7 {[%clk 0:02:59.2]} 6. O-O {[%clk 0:02:53.1]} 6... a6 {[%clk
0:02:59.3]} 7. Bc4 {[%clk 0:02:50.8]} 7... Qh5 {[%clk 0:02:57.2]} 8. h3 {[%clk
0:02:48.2]} 8... O-O-O {[%clk 0:02:52.1]} 9. d3 {[%clk 0:02:42.2]} 9... e6
{[%clk 0:02:48.6]} 10. Bf4 {[%clk 0:02:40.5]} 10... Bd6 {[%clk 0:02:46.9]} 11.
Bxd6 {[%clk 0:02:39.9]} 11... cxd6 {[%clk 0:02:47.8]} 12. Re1 {[%clk 0:02:36.6]}
12... Nf6 {[%clk 0:02:46.8]} 13. Qd2 {[%clk 0:02:29.1]} 13... h6 {[%clk
0:02:41.6]} 14. Qf4 {[%clk 0:02:22.8]} 14... Be8 {[%clk 0:02:31]} 15. Ne4 {[%clk
0:01:56.5]} 15... Nxe4 {[%clk 0:02:11.6]} 16. dxe4 {[%clk 0:01:56.7]} 16... g5
{[%clk 0:01:54.7]} 17. Qf6 {[%clk 0:01:32.6]} 17... Rg8 {[%clk 0:01:54.1]} 18.
Nh2 {[%clk 0:01:05.8]} 18... Qg6 {[%clk 0:01:47.5]} 19. Qxg6 {[%clk 0:01:04.3]}
19... Rxg6 {[%clk 0:01:48.4]} 20. Rad1 {[%clk 0:00:59.8]} 20... h5 {[%clk
0:01:46.3]} 21. Be2 {[%clk 0:00:58]} 21... Rh6 {[%clk 0:01:43.2]} 22. Nf3 {[%clk
0:00:54]} 22... g4 {[%clk 0:01:40]} 23. hxg4 {[%clk 0:00:53]} 23... hxg4 {[%clk
0:01:40.9]} 24. Nd4 {[%clk 0:00:53.1]} 24... Ne5 {[%clk 0:01:39.4]} 25. Bf1
{[%clk 0:00:45.8]} 25... Bc6 {[%clk 0:01:25.1]} 26. Rd2 {[%clk 0:00:40]} 26...
Rdh8 {[%clk 0:01:24.2]} 27. f4 {[%clk 0:00:33.6]} 27... g3 {[%clk 0:01:23.6]}
0-1

[Event "*** Titled Tuesday Blitz"]
[Site "Chess.com"]
[Date "2020.04.07"]
[Round "2"]
[White "anon132639"]
[Black "MaxLeto"]
[Result "1-0"]
[WhiteElo "2616"]
[BlackElo "2322"]
[TimeControl "180+1"]
[EndTime "13:17:06 PDT"]
[Termination "anon132639 won by resignation"]

1. d4 {[%clk 0:03:00.9]} 1... g6 {[%clk 0:02:53.4]} 2. c4 {[%clk 0:03:01]} 2...
Bg7 {[%clk 0:02:52.9]} 3. Nf3 {[%clk 0:03:01.8]} 3... d6 {[%clk 0:02:52.8]} 4.
Nc3 {[%clk 0:03:02]} 4... Nc6 {[%clk 0:02:53]} 5. g3 {[%clk 0:02:59.3]} 5... e5
{[%clk 0:02:51.9]} 6. dxe5 {[%clk 0:02:58.2]} 6... Nxe5 {[%clk 0:02:51.2]} 7.
Nxe5 {[%clk 0:02:57.9]} 7... Bxe5 {[%clk 0:02:51]} 8. Bg2 {[%clk 0:02:58.3]}
8... h5 {[%clk 0:02:39.3]} 9. h4 {[%clk 0:02:51]} 9... c6 {[%clk 0:02:36]} 10.
O-O {[%clk 0:02:45.7]} 10... Be6 {[%clk 0:02:33.6]} 11. Ne4 {[%clk 0:02:37.3]}
11... f5 {[%clk 0:01:38.1]} 12. Bg5 {[%clk 0:02:35.3]} 12... Qd7 {[%clk
0:01:29.1]} 13. f4 {[%clk 0:02:27.9]} 13... fxe4 {[%clk 0:01:18.4]} 14. fxe5
{[%clk 0:02:26.7]} 14... d5 {[%clk 0:00:50.3]} 15. cxd5 {[%clk 0:02:27.6]} 15...
cxd5 {[%clk 0:00:37.5]} 16. Rc1 {[%clk 0:02:27.5]} 16... Ne7 {[%clk 0:00:35.2]}
17. Rf6 {[%clk 0:02:14.7]} 17... Rf8 {[%clk 0:00:16.6]} 18. Qb3 {[%clk
0:02:13.1]} 18... Rf7 {[%clk 0:00:11.6]} 19. Rcf1 {[%clk 0:01:52.1]} 19... Kf8
{[%clk 0:00:07.8]} 20. Bxe4 {[%clk 0:01:47.8]} 20... dxe4 {[%clk 0:00:03]} 21.
Rxf7+ {[%clk 0:01:46.2]} 1-0

[Event "*** Titled Tuesday Blitz"]
[Site "Chess.com"]
[Date "2020.04.07"]
[Round "2"]
[White "tgpgoat"]
[Black "Alex_Terzi"]
[Result "0-1"]
[WhiteElo "2050"]
[BlackElo "2407"]
[TimeControl "180+1"]
[EndTime "13:17:07 PDT"]
[Termination "Alex_Terzi won by resignation"]

1. e4 {[%clk 0:02:55.8]} 1... c5 {[%clk 0:02:58.2]} 2. Nf3 {[%clk 0:02:54.9]}
2... Nc6 {[%clk 0:02:57.2]} 3. d4 {[%clk 0:02:54.3]} 3... cxd4 {[%clk
0:02:58.1]} 4. Nxd4 {[%clk 0:02:54.6]} 4... g6 {[%clk 0:02:58.8]} 5. Be3 {[%clk
0:02:53.1]} 5... Nf6 {[%clk 0:02:58.4]} 6. Nc3 {[%clk 0:02:52.3]} 6... Bg7
{[%clk 0:02:58.6]} 7. Bc4 {[%clk 0:02:48.7]} 7... O-O {[%clk 0:02:58.4]} 8. f3
{[%clk 0:02:46.6]} 8... Qb6 {[%clk 0:02:56.3]} 9. Bb3 {[%clk 0:02:34.2]} 9...
Nxe4 {[%clk 0:02:50.3]} 10. fxe4 {[%clk 0:02:33.2]} 10... Bxd4 {[%clk
0:02:49.6]} 11. Bxd4 {[%clk 0:02:26.5]} 11... Qxd4 {[%clk 0:02:50.5]} 12. Qxd4
{[%clk 0:02:23.9]} 12... Nxd4 {[%clk 0:02:51.4]} 13. O-O-O {[%clk 0:02:23.6]}
13... Nc6 {[%clk 0:02:42.3]} 14. Nd5 {[%clk 0:01:46.4]} 14... Rb8 {[%clk
0:02:29.9]} 15. Rhf1 {[%clk 0:01:44.3]} 15... d6 {[%clk 0:02:27.1]} 16. Ba4
{[%clk 0:01:25.3]} 16... b5 {[%clk 0:02:25.4]} 17. Bb3 {[%clk 0:01:21.3]} 17...
Be6 {[%clk 0:02:25.4]} 18. Nf4 {[%clk 0:01:13.7]} 18... Bxb3 {[%clk 0:02:24.7]}
19. cxb3 {[%clk 0:01:14.6]} 19... Ne5 {[%clk 0:02:23.3]} 20. Nd3 {[%clk
0:01:13.2]} 20... Rfc8+ {[%clk 0:02:22.3]} 21. Kb1 {[%clk 0:01:12.5]} 21... Ng4
{[%clk 0:02:21.9]} 22. Rf3 {[%clk 0:01:02.4]} 22... Nxh2 {[%clk 0:02:16.4]} 23.
Rg3 {[%clk 0:01:02.1]} 23... h5 {[%clk 0:02:16.1]} 24. Nf4 {[%clk 0:01:01.7]}
24... Ng4 {[%clk 0:02:14.4]} 25. Nd5 {[%clk 0:01:00.9]} 25... Kf8 {[%clk
0:02:08.9]} 26. Rf1 {[%clk 0:00:57.4]} 26... Rb7 {[%clk 0:02:00.6]} 27. Nf4
{[%clk 0:00:52.6]} 27... Kg7 {[%clk 0:01:59.2]} 28. Nd3 {[%clk 0:00:49.3]} 28...
Rbc7 {[%clk 0:01:55.9]} 29. Rgf3 {[%clk 0:00:48]} 29... e6 {[%clk 0:01:51.9]}
30. a3 {[%clk 0:00:46.4]} 30... Nh2 {[%clk 0:01:51.2]} 31. R3f2 {[%clk
0:00:45.5]} 31... Nxf1 {[%clk 0:01:50.6]} 32. Rxf1 {[%clk 0:00:46.4]} 32... Rc2
{[%clk 0:01:50.8]} 33. e5 {[%clk 0:00:44.1]} 33... Rd2 {[%clk 0:01:46]} 34. Nb4
{[%clk 0:00:42.5]} 34... dxe5 {[%clk 0:01:44.4]} 0-1

[Event "*** Titled Tuesday Blitz"]
[Site "Chess.com"]
[Date "2020.04.07"]
[Round "2"]
[White "MFguimaraes"]
[Black "guilhermedeola"]
[Result "1-0"]
[WhiteElo "2407"]
[BlackElo "2042"]
[TimeControl "180+1"]
[EndTime "13:17:07 PDT"]
[Termination "MFguimaraes won on time"]

1. e4 {[%clk 0:03:00.9]} 1... e5 {[%clk 0:02:59.8]} 2. Nf3 {[%clk 0:03:01]} 2...
Nc6 {[%clk 0:02:59.9]} 3. Bc4 {[%clk 0:03:01.1]} 3... Nf6 {[%clk 0:02:59.7]} 4.
Ng5 {[%clk 0:03:01.5]} 4... d5 {[%clk 0:02:59.3]} 5. exd5 {[%clk 0:03:02.4]}
5... Na5 {[%clk 0:02:59.4]} 6. Bb5+ {[%clk 0:03:02.1]} 6... c6 {[%clk
0:02:59.5]} 7. dxc6 {[%clk 0:03:03]} 7... bxc6 {[%clk 0:03:00]} 8. Qf3 {[%clk
0:03:03.2]} 8... Bd7 {[%clk 0:02:50.4]} 9. Bd3 {[%clk 0:02:55.5]} 9... h6 {[%clk
0:02:14.2]} 10. Ne4 {[%clk 0:02:54.3]} 10... Be7 {[%clk 0:02:09]} 11. Nbc3
{[%clk 0:02:50]} 11... Qc8 {[%clk 0:01:59.1]} 12. Nxf6+ {[%clk 0:02:47.7]} 12...
Bxf6 {[%clk 0:01:59.3]} 13. h3 {[%clk 0:02:43.4]} 13... Nb7 {[%clk 0:01:50.1]}
14. Ba6 {[%clk 0:02:35.3]} 14... Qc7 {[%clk 0:01:32.4]} 15. Nb5 {[%clk
0:02:32.8]} 15... Qb8 {[%clk 0:01:21.7]} 16. Bxb7 {[%clk 0:02:32.8]} 16... O-O
{[%clk 0:00:58.6]} 17. Bxa8 {[%clk 0:02:28.1]} 17... Qxa8 {[%clk 0:00:58.8]} 18.
Nc3 {[%clk 0:02:24.4]} 18... Re8 {[%clk 0:00:54.7]} 19. d3 {[%clk 0:02:24.2]}
19... Qb7 {[%clk 0:00:50.3]} 20. O-O {[%clk 0:02:22.4]} 20... Qc8 {[%clk
0:00:18.1]} 21. Bxh6 {[%clk 0:02:18.3]} 21... Bf5 {[%clk 0:00:12.9]} 22. Ne4
{[%clk 0:02:10.8]} 22... Bxe4 {[%clk 0:00:06.1]} 23. dxe4 {[%clk 0:02:10.9]}
23... gxh6 {[%clk 0:00:05.8]} 24. Qxf6 {[%clk 0:02:10]} 24... Qe6 {[%clk
0:00:04.5]} 25. Qxe6 {[%clk 0:02:10]} 25... Rxe6 {[%clk 0:00:05.4]} 26. Rfd1
{[%clk 0:02:10.2]} 26... Kg7 {[%clk 0:00:04.9]} 27. Rd7 {[%clk 0:02:10]} 27...
a6 {[%clk 0:00:03.4]} 28. Rad1 {[%clk 0:02:08.6]} 28... Kf6 {[%clk 0:00:01.8]}
29. R1d6 {[%clk 0:02:08.6]} 1-0

[Event "*** Titled Tuesday Blitz"]
[Site "Chess.com"]
[Date "2020.04.07"]
[Round "2"]
[White "Mops_2004"]
[Black "donotreadit"]
[Result "1-0"]
[WhiteElo "2533"]
[BlackElo "2732"]
[TimeControl "180+1"]
[EndTime "13:17:13 PDT"]
[Termination "Mops_2004 won by resignation"]

1. Nf3 {[%clk 0:03:00.9]} 1... d5 {[%clk 0:02:59.5]} 2. g3 {[%clk 0:03:00.6]}
2... Nd7 {[%clk 0:02:57.5]} 3. Bg2 {[%clk 0:02:58.5]} 3... e5 {[%clk 0:02:57.2]}
4. d3 {[%clk 0:02:57.7]} 4... Bd6 {[%clk 0:02:57.8]} 5. O-O {[%clk 0:02:57.5]}
5... Ngf6 {[%clk 0:02:58.4]} 6. Nc3 {[%clk 0:02:56.9]} 6... O-O {[%clk
0:02:57.7]} 7. e4 {[%clk 0:02:55.5]} 7... d4 {[%clk 0:02:57.7]} 8. Ne2 {[%clk
0:02:52.2]} 8... c5 {[%clk 0:02:57.9]} 9. a4 {[%clk 0:02:48.1]} 9... b6 {[%clk
0:02:53.8]} 10. h3 {[%clk 0:02:37]} 10... Bb7 {[%clk 0:02:51.7]} 11. Nh2 {[%clk
0:02:33.9]} 11... c4 {[%clk 0:02:51.6]} 12. f4 {[%clk 0:02:27.9]} 12... cxd3
{[%clk 0:02:51.6]} 13. cxd3 {[%clk 0:02:28.8]} 13... Rc8 {[%clk 0:02:52]} 14. f5
{[%clk 0:02:16.6]} 14... Qc7 {[%clk 0:02:48.5]} 15. Rf3 {[%clk 0:02:03.6]} 15...
Qc2 {[%clk 0:02:37.8]} 16. Qf1 {[%clk 0:02:02.6]} 16... Nc5 {[%clk 0:02:35.5]}
17. Bg5 {[%clk 0:01:44.1]} 17... Nxd3 {[%clk 0:02:26.2]} 18. Bxf6 {[%clk
0:01:43.2]} 18... gxf6 {[%clk 0:02:26.5]} 19. Ng4 {[%clk 0:01:43]} 19... Be7
{[%clk 0:02:21.9]} 20. Nxd4 {[%clk 0:01:40.3]} 20... exd4 {[%clk 0:02:01.2]} 21.
Qxd3 {[%clk 0:01:32.2]} 21... Bxe4 {[%clk 0:01:57.8]} 22. Qxc2 {[%clk
0:01:25.2]} 22... Rxc2 {[%clk 0:01:58.7]} 23. Rf2 {[%clk 0:01:21.9]} 23... Rxf2
{[%clk 0:01:56.4]} 24. Kxf2 {[%clk 0:01:20.1]} 24... Bxf5 {[%clk 0:01:55.9]} 25.
Nh6+ {[%clk 0:01:19.8]} 25... Kh8 {[%clk 0:01:52.7]} 26. Nxf5 {[%clk 0:01:20.7]}
26... Bc5 {[%clk 0:01:53]} 27. Ke2 {[%clk 0:01:18.2]} 27... h5 {[%clk
0:01:46.7]} 28. Bf3 {[%clk 0:01:17.6]} 28... Kh7 {[%clk 0:01:41.3]} 29. Bxh5
{[%clk 0:01:10.7]} 29... Re8+ {[%clk 0:01:41.4]} 30. Kd3 {[%clk 0:01:10.8]}
30... Re5 {[%clk 0:01:42.3]} 31. g4 {[%clk 0:01:05.1]} 31... Kg8 {[%clk
0:01:42.6]} 32. a5 {[%clk 0:00:59]} 32... Kf8 {[%clk 0:01:38.7]} 33. axb6 {[%clk
0:00:58.7]} 33... Bxb6 {[%clk 0:01:39.6]} 34. Rc1 {[%clk 0:00:56.3]} 34... Ke8
{[%clk 0:01:38.9]} 35. Rc8+ {[%clk 0:00:53]} 35... Kd7 {[%clk 0:01:39.2]} 36.
Rf8 {[%clk 0:00:52.2]} 36... Rb5 {[%clk 0:01:39.6]} 37. Rxf7+ {[%clk 0:00:48.2]}
37... Ke6 {[%clk 0:01:39.8]} 38. Re7+ {[%clk 0:00:45.8]} 38... Kd5 {[%clk
0:01:40.4]} 39. Bf7+ {[%clk 0:00:45.5]} 39... Kc6 {[%clk 0:01:40.1]} 40. Be8+
{[%clk 0:00:45.3]} 1-0

[Event "*** Titled Tuesday Blitz"]
[Site "Chess.com"]
[Date "2020.04.07"]
[Round "2"]
[White "MiroMiljkovic"]
[Black "vladislavkovalev"]
[Result "1-0"]
[WhiteElo "2601"]
[BlackElo "2887"]
[TimeControl "180+1"]
[EndTime "13:17:14 PDT"]
[Termination "MiroMiljkovic won by resignation"]

1. d4 {[%clk 0:03:00.9]} 1... Nf6 {[%clk 0:02:59.8]} 2. Nf3 {[%clk 0:03:00]}
2... g6 {[%clk 0:03:00]} 3. Bg5 {[%clk 0:03:00.4]} 3... Bg7 {[%clk 0:03:00.3]}
4. Nbd2 {[%clk 0:03:00.9]} 4... O-O {[%clk 0:02:59.7]} 5. c3 {[%clk 0:03:00.2]}
5... d6 {[%clk 0:02:55.9]} 6. a4 {[%clk 0:02:57.5]} 6... c5 {[%clk 0:02:55.3]}
7. e3 {[%clk 0:02:57.3]} 7... Nc6 {[%clk 0:02:51.2]} 8. Be2 {[%clk 0:02:54.6]}
8... b6 {[%clk 0:02:42.7]} 9. O-O {[%clk 0:02:53.8]} 9... Bb7 {[%clk 0:02:42.7]}
10. Re1 {[%clk 0:02:38.6]} 10... a6 {[%clk 0:02:39.3]} 11. Bh4 {[%clk 0:02:33]}
11... Rb8 {[%clk 0:02:19.6]} 12. h3 {[%clk 0:02:29.5]} 12... Re8 {[%clk
0:02:10.3]} 13. Qc2 {[%clk 0:02:16.5]} 13... Rc8 {[%clk 0:02:02.7]} 14. Rad1
{[%clk 0:02:07.6]} 14... Na5 {[%clk 0:01:37.1]} 15. Qb1 {[%clk 0:02:04.3]} 15...
d5 {[%clk 0:01:20]} 16. Ne5 {[%clk 0:01:58.6]} 16... Nc6 {[%clk 0:01:17.8]} 17.
Bg3 {[%clk 0:01:54]} 17... e6 {[%clk 0:01:15.1]} 18. b4 {[%clk 0:01:48.3]} 18...
cxb4 {[%clk 0:01:14.1]} 19. cxb4 {[%clk 0:01:49.2]} 19... Nxe5 {[%clk
0:01:09.4]} 20. Bxe5 {[%clk 0:01:47.7]} 20... Nd7 {[%clk 0:01:09.6]} 21. Bxg7
{[%clk 0:01:37.5]} 21... Kxg7 {[%clk 0:01:10.5]} 22. Rc1 {[%clk 0:01:38.1]}
22... Qe7 {[%clk 0:01:10.8]} 23. Qb2 {[%clk 0:01:36.3]} 23... Qd6 {[%clk
0:01:05.4]} 24. a5 {[%clk 0:01:24.8]} 24... b5 {[%clk 0:00:56.4]} 25. Rc5 {[%clk
0:01:05.9]} 25... Nxc5 {[%clk 0:00:56.2]} 26. dxc5+ {[%clk 0:01:04.7]} 1-0